{"text_format":"1","workbook":"xlsx","n_sheets":2,"sheets":["Pasiūlymas","Subtiekėjai"],"not_rendered":{"charts":0,"images":0,"macros":1,"external_links":0,"defined_names":0,"comments":0,"pivot_tables":0},"unopened":[],"bounds":{"document_bytes":16777216,"sheet_cells":100000,"rows_first":2000,"rows_last":500,"rows_between":2000,"halvings":0,"cell_chars":16384,"cell_head_chars":4096},"cells_cut":0,"cells_raw":0,"read":"whole","date_system":"1900"}

{"sheet":"Pasiūlymas","index":0,"n_rows":121,"n_cols":13,"rows_kept":121,"cut":false,"hidden":false,"merged":[[77,1,77,6],[85,1,85,6],[97,1,97,6],[108,1,108,6],[116,1,116,6],[28,1,28,6],[37,1,37,6],[44,1,44,6],[53,1,53,6],[70,1,70,6],[9,0,9,1],[9,2,9,4],[10,0,10,1],[10,2,10,4],[11,0,11,1],[11,2,11,4],[12,0,12,1],[12,2,12,4],[13,0,13,1],[13,2,13,4],[14,0,14,1],[14,2,14,4],[18,0,18,1],[18,2,18,4],[19,0,19,1],[19,2,19,4],[15,0,15,1],[15,2,15,4],[16,0,16,1],[16,2,16,4],[17,0,17,1],[17,2,17,4]]}
["Perkantysis subjektas, kuriam teikiamas pasiūlymas:",null,"VŠĮ Kauno klinikinė ligoninė"]
[]
[null,"PASIŪLYMAS"]
[null,"Patalynės ir kitų tekstilės gaminių pirkimas"]
[]
["Data:","2019-12-11"]
["Nr.:",1211]
["Vieta:","Panevėžys"]
[]
["Tiekėjo arba tiekėjų grupės narių pavadinimas (-ai)",null,"ARTEKS,UAB"]
["Tiekėjo arba tiekėjo grupės narių juridinio asmens kodas (-ai) (tuo atveju, jei pasiūlymą teikia fizinis asmuo - verslo pažymėjimo Nr. ar pan.)",null,148328342]
["Tiekėjo arba tiekėjo grupės narių PVM mokėtojo kodas (-ai)",null,"LT483283411"]
["Tiekėjų grupės narys, atstovaujantis arba vadovaujantis  tiekėjų grupei (pildoma, jei pasiūlymą teikia tiekėjų grupė)"]
["Tiekėjo valdymo ar priežiūros organo narys (-iai) ar kitas asmuo (-ys), turintis (-ys) teisę atstovauti tiekėjui ar jį kontroliuoti, jo vardu priimti sprendimą, sudaryti sandorį"]
["Tiekėjo arba atstovaujančio tiekėjų grupės nario adresas, telefono numeris, fakso numeris, el. paštas",null,"Parko g.77-29,Panevėžys tel/faks +37045527056,mob.+37068536870;arnasra@gmail.com"]
["Tiekėjo arba atstovaujančio tiekėjų grupės nario banko pavadinimas, banko kodas, sąskaitos Nr.",null,"A/s LT267044060002694581 AB SEB bankas,70440"]
["Asmens, įgalioto pasirašyti sutartį, vardas, pavardė, pareigos",null,"Direktorius Arnoldas Raišys"]
["Asmens, atsakingo už pirkimą, vardas, pavardė,  telefono numeris, el. paštas",null,"Arnoldas Raišys,+37068536870,arnasra@gmail.com"]
[]
[]
[]
[]
[]
["Siūlomas pirkimo objektas visiškai atitinka pirkimo sąlygose nustatytus reikalavimus ir jo kaina yra:"]
[]
[]
[null,null,null,null,null,null,null,null,null,null,"","",""]
["Nr.","Pavadinimas","Kiekis","Mato vienetas","Kaina be PVM, Eur","Suma be PVM, Eur","Siūlomi produktai"]
["1.","LOVOS PATALYNĖ",null,null,null,null,null,null,null,""]
["1.1.","Paklodė ( 2,20x1,50) m",246,"vnt.",3.6,{"$f":"IF(ISBLANK(E30),\"\", PRODUCT(C30,E30))","v":885.6},"Paklodė 2,2x1,5m pasteliškai marga"]
["1.2.","Paklodė ( 2,20x1,70) m",267,"vnt.",3.75,{"$f":"IF(ISBLANK(E31),\"\", PRODUCT(C31,E31))","v":1001.25},"Paklodė 2,2x1,7m pasteliškai marga"]
["1.3.","Užvalkalas antklodei ( 2,20x1,50)m",541,"vnt.",6.72,{"$f":"IF(ISBLANK(E32),\"\", PRODUCT(C32,E32))","v":3635.52},"Užvalkalas antklodei 2,2x1,5m pasteliškai margas",null,null,""]
["1.4.","Užvalkalas pagalvei ( 0,7x0,7)m",721,"vnt.",1.6,{"$f":"IF(ISBLANK(E33),\"\", PRODUCT(C33,E33))","v":1153.6000000000001},"Užvalkalas pagalvei 0,7x0,7m pasteliškai margas",null,null,null,null,""]
[null,null,null,null,"Suma be PVM",{"$f":"IF((SUMPRODUCT(--(F30:F33=\"\"))>0), \"\", SUM(F30:F33))","v":6675.97},{"$f":"IF((SUMPRODUCT(--(F30:F33=\"\"))>0), \"Neužpildytos visų objektų kainos\", \"\")","v":""},null,null,null,null,""]
[null,null,null,null,"PVM suma",1401.95,null,null,null,"","",""]
[null,null,null,null,"Suma su PVM",{"$f":"IF(ISBLANK(F35), \"\", SUM(F34:F35))","v":8077.92},null,null,null,"","",""]
[null,null,null,null,null,null,null,null,null,"","",""]
["2.","RANKŠLUOSČIAI"]
["2.1."," Rankšluostis ( vaflinis) išmatavimai( 0,5  x0,7 )m",344,"vnt.",null,{"$f":"IF(ISBLANK(E39),\"\", PRODUCT(C39,E39))","v":""}]
["2.2.","Rankšluostis frote ( 0,5 x 0,7)m",424,"vnt.",null,{"$f":"IF(ISBLANK(E40),\"\", PRODUCT(C40,E40))","v":""},null,null,null,""]
[null,null,null,null,"Suma be PVM",{"$f":"IF((SUMPRODUCT(--(F39:F40=\"\"))>0), \"\", SUM(F39:F40))","v":""},{"$f":"IF((SUMPRODUCT(--(F39:F40=\"\"))>0), \"Neužpildytos visų objektų kainos\", \"\")","v":"Neužpildytos visų objektų kainos"}]
[null,null,null,null,"PVM suma",null,null,null,null,null,null,""]
[null,null,null,null,"Suma su PVM",{"$f":"IF(ISBLANK(F42), \"\", SUM(F41:F42))","v":""},null,null,null,"",null,""]
[null,null,null,null,null,null,null,null,null,null,null,""]
["3.","PUSPAKLODĖS"]
["3.1."," Puspaklodė (1,0 x 1,5) m",284,"vnt.",2.0099999999999998,{"$f":"IF(ISBLANK(E46),\"\", PRODUCT(C46,E46))","v":570.83999999999992},"Puspaklodė1,0x1,5mpasteliškai marga",null,null,"","",""]
["3.2.","Puspaklodė ( 1,7 x 1,05)m",400,"vnt.",2.19,{"$f":"IF(ISBLANK(E47),\"\", PRODUCT(C47,E47))","v":876},"Puspaklodė 1,7x1,05m pasteliškai marga ",null,null,"","",""]
["3.3.","Puspaklodė ( 0,8 x 1,00)m",250,"vnt.",1.38,{"$f":"IF(ISBLANK(E48),\"\", PRODUCT(C48,E48))","v":345},"Puspaklodė 0,8x1,0 pasteliškai marga",null,null,"","",""]
["3.4.","Puspaklodė ( 1,20 x 1,80) m",50,"vnt.",2.92,{"$f":"IF(ISBLANK(E49),\"\", PRODUCT(C49,E49))","v":146},"Puspaklodė 1,2x1,8m pasteliškai marga"]
[null,null,null,null,"Suma be PVM",{"$f":"IF((SUMPRODUCT(--(F46:F49=\"\"))>0), \"\", SUM(F46:F49))","v":1937.84},{"$f":"IF((SUMPRODUCT(--(F46:F49=\"\"))>0), \"Neužpildytos visų objektų kainos\", \"\")","v":""}]
[null,null,null,null,"PVM suma",406.95]
[null,null,null,null,"Suma su PVM",{"$f":"IF(ISBLANK(F51), \"\", SUM(F50:F51))","v":2344.79}]
[]
["4.","OPERACINIAI SKALBINIAI"]
["4.1."," Paklodė operacinė ( 1,0 x 1,5) m ",2300,"vnt.",2.46,{"$f":"IF(ISBLANK(E55),\"\", PRODUCT(C55,E55))","v":5658},"Paklodė oper.žalia 1,0x1,5m"]
["4.2.","Operacinė pižama ( kelnės + bliuzė) komplektas 52 dydis",50,"kompl.",10.5,525,"Operac.pižama 52d žalia"]
["4.3.","Operacinė pižama ( kelnės + bliuzė) komplektas 54 dydis",100,"kompl.",10.5,1050,"Operac.pižama 54d žalia"]
["4.4.","Operacinė pižama ( kelnės + bliuzė) komplektas 56 dydis",100,"kompl.",10.5,1050,"Operac.pižama 56d žalia"]
["4.5.","Operacinė pižama ( kelnės + bliuzė) komplektas 58 dydis",200,"kompl.",10.5,2100,"Operac.pižama 58d žalia"]
["4.6.","Operacinė pižama ( kelnės + bliuzė) komplektas 60 dydis",170,"kompl.",10.5,1785,"Operac.pižama 60d žalia."]
["4.7.","Operacinė pižama ( kelnės + bliuzė) komplektas 62 dydis",170,"kompl.",10.5,1785,"Operac.pižama 62d žalia"]
["4.8.","Operacinis chalatas su tampomu mankietu 54 dydis",50,"vnt.",10,500,"Oper.chalatas su triotaž..manketu54d žalias"]
["4.9.","Operacinis chalatas su tampomu mankietu 56 dydis",150,"vnt.",10,1500,"Oper.chalatas su trikotaž.manketu56d žalias"]
["4.10.","Operacinis chalatas su tampomu mankietu 58 dydis",250,"vnt.",10,2500,"Oper.chalatas su trikotaž.manketu 58d žalias"]
["4.11.","Operacinis chalatas su tampomu mankietu 60 dydis",170,"vnt.",10,1700,"Oper.chalatas su trikotaž.manketu 60d žalias"]
["4.12.","Operacinis chalatas su tampomu mankietu 62 dydis",50,"vnt.",10,500,"Oper.chalatas su trikotaž..manketu62d žalias"]
[null,null,null,null,"Suma be PVM",{"$f":"IF((SUMPRODUCT(--(F55:F66=\"\"))>0), \"\", SUM(F55:F66))","v":20653},{"$f":"IF((SUMPRODUCT(--(F55:F66=\"\"))>0), \"Neužpildytos visų objektų kainos\", \"\")","v":""}]
[null,null,null,null,"PVM suma",4337.13]
[null,null,null,null,"Suma su PVM",{"$f":"IF(ISBLANK(F68), \"\", SUM(F67:F68))","v":24990.13}]
[]
["5.","MAIŠAI SKALBINIAMS"]
["5.1."," Maišas skalbiniams ( 1,2 x 1,5) m ",20,"vnt.",3.9,{"$f":"IF(ISBLANK(E72),\"\", PRODUCT(C72,E72))","v":78},"Maišas skalb.1,2x1,5m baltas"]
["5.2.","Maišas skalbiniams ( 1,5 x 1,5) m",20,"vnt.",4.59,{"$f":"IF(ISBLANK(E73),\"\", PRODUCT(C73,E73))","v":91.8},"Maišas skalb.1,5x1,5m baltas"]
[null,null,null,null,"Suma be PVM",{"$f":"IF((SUMPRODUCT(--(F72:F73=\"\"))>0), \"\", SUM(F72:F73))","v":169.8},{"$f":"IF((SUMPRODUCT(--(F72:F73=\"\"))>0), \"Neužpildytos visų objektų kainos\", \"\")","v":""}]
[null,null,null,null,"PVM suma",35.659999999999997]
[null,null,null,null,"Suma su PVM",{"$f":"IF(ISBLANK(F75), \"\", SUM(F74:F75))","v":205.46}]
[]
["6.","PIŽAMA FLANELINĖ PACIENTAMS"]
["6.1."," Pižama flanelinė pacientui ( kelnės + švarkas) suaugusiam dydis L  42( EU)  ",31,"kompl.",8.8000000000000007,{"$f":"IF(ISBLANK(E79),\"\", PRODUCT(C79,E79))","v":272.8},"Pižama flanelinė pacientui 42 marga"]
["6.2.","Pižama flanelinė pacientui ( kelnės + švarkas) suaugusiam dydis 3XL 48 (EU)",31,"kompl.",8.8000000000000007,{"$f":"IF(ISBLANK(E80),\"\", PRODUCT(C80,E80))","v":272.8},"Pižama flanelinė pacientui 48d marga"]
["6.3.","Pižama flanelinė pacientui ( kelnės + švarkas) suaugusiam dydis 5XL 52 (EU)",15,"kompl.",8.8000000000000007,{"$f":"IF(ISBLANK(E81),\"\", PRODUCT(C81,E81))","v":132},"Pižama flanelinė pacientui 52d marga"]
[null,null,null,null,"Suma be PVM",{"$f":"IF((SUMPRODUCT(--(F79:F81=\"\"))>0), \"\", SUM(F79:F81))","v":677.6},{"$f":"IF((SUMPRODUCT(--(F79:F81=\"\"))>0), \"Neužpildytos visų objektų kainos\", \"\")","v":""}]
[null,null,null,null,"PVM suma",142.30000000000001]
[null,null,null,null,"Suma su PVM",{"$f":"IF(ISBLANK(F83), \"\", SUM(F82:F83))","v":819.90000000000009}]
[]
["7.","APATINIAI BALTINIAI PACIENTAMS"]
["7.1."," Apatiniai pacientų baltiniai su raišteliais, dydis 2XL 46 (EU) ",82,"vnt.",4.04,{"$f":"IF(ISBLANK(E87),\"\", PRODUCT(C87,E87))","v":331.28000000000003},"Apat.pacientų baltin.su raišt.46d"]
["7.2.","Apatiniai pacientų baltiniai su raišteliais, dydis 3XL 48 (EU)",30,"vnt.",4.04,121.2,"Apat.pacientų baltin.su raišt.48d pasteliškai margi"]
["7.3.","Apatiniai pacientų baltiniai su raišteliais, dydis 5XL 52 (EU)",20,"vnt.",4.04,80.8,"Apat.pacientų baltin.su raišt.52d pasteliškai margi"]
["7.4.","Apatiniai pacientų baltiniai su raišteliais, dydis 6XL 54 (EU)",20,"vnt.",4.04,80.8,"Apat.pacientų balt.su raišt.54d pasteliškai margi"]
["7.5.","Apatiniai pacientų baltiniai su raišteliais, dydis 7XL 56 (EU)",10,"vnt.",4.04,40.4,"Apat.pacientų baltin.su raišt.56d pasteliškai margi"]
["7.6.","Marškiniai operaciniai pacientui ilgi, trumpos rankovės, užpakalinėje dalyje perskelti, surišami nugaroje, dydis  56 ",45,"vnt.",4.2,189,"Maršk.oper.pacientui perskel.užpak.daly,surįšami nugaroje56d pasteliškai margi"]
["7.7.","Marškiniai operaciniai pacientui ilgi, trumpos rankovės, užpakalinėje dalyje perskelti, surišami nugaroje, dydis  60",30,"vnt.",4.2,126,"Maršk.oper.pacientui perskel.užpak.daly,surįšami nugaroje60d pasteliškai margi"]
[null,null,null,null,"Suma be PVM",{"$f":"IF((SUMPRODUCT(--(F87:F93=\"\"))>0), \"\", SUM(F87:F93))","v":969.4799999999999},{"$f":"IF((SUMPRODUCT(--(F87:F93=\"\"))>0), \"Neužpildytos visų objektų kainos\", \"\")","v":""}]
[null,null,null,null,"PVM suma",203.59]
[null,null,null,null,"Suma su PVM",{"$f":"IF(ISBLANK(F95), \"\", SUM(F94:F95))","v":1173.07}]
[]
["8.","MEDICININIS DARBO KOSTIUMAS ( kelnės + bliuzė) komplektas"]
["8.1."," Medicininis darbo kostiumas ( kelnės + bliuzė), dydis S/M 38  (EU) ",10,"kompl.",10.65,{"$f":"IF(ISBLANK(E99),\"\", PRODUCT(C99,E99))","v":106.5},"Med.darbo kost.(kelnės+bliuzė)  žydras 38d"]
["8.2."," Medicininis darbo kostiumas ( kelnės + bliuzė), dydis L 42  (EU) ",10,"kompl.",10.65,106.5,"Med.darbo kost.(kelnės+bliuzė)  žydras 42d"]
["8.3."," Medicininis darbo kostiumas ( kelnės + bliuzė), dydis 2XL 46  (EU) ",10,"kompl.",10.65,106.5,"Med.darbo kost.(kelnės+bliuzė)  žydras 46d"]
["8.4."," Medicininis darbo kostiumas ( kelnės + bliuzė), dydis 4XL 50  (EU) ",10,"kompl.",10.65,106.5,"Med.darbo kost.(kelnės+bliuzė) žydras 50d"]
["8.5."," Medicininis darbo kostiumas ( kelnės + bliuzė), dydis 5XL 52 (EU) ",20,"kompl.",10.65,213,"Med.darbo kost.(kelnės+bliuzė) žydras 52d"]
["8.6."," Medicininis darbo kostiumas ( kelnės + bliuzė), dydis 6XL 54 (EU) ",20,"kompl.",10.65,213,"Med.darbo kost.(kelnės+bliuzė) žydras54d"]
[null,null,null,null,"Suma be PVM",{"$f":"IF((SUMPRODUCT(--(F99:F104=\"\"))>0), \"\", SUM(F99:F104))","v":852},{"$f":"IF((SUMPRODUCT(--(F99:F104=\"\"))>0), \"Neužpildytos visų objektų kainos\", \"\")","v":""}]
[null,null,null,null,"PVM suma",178.92]
[null,null,null,null,"Suma su PVM",{"$f":"IF(ISBLANK(F106), \"\", SUM(F105:F106))","v":1030.92}]
[]
["9.","LOVOS PATALYNĖ VAIKIŠKA IR PAAUGLIŲ"]
["9.1.","Užvalkalas antklodei kūdikių ( 1,3 x 1,5 ) m",30,"vnt.",4.72,{"$f":"IF(ISBLANK(E110),\"\", PRODUCT(C110,E110))","v":141.6},"Užvalkalas antkl.kūdikių 1,3x1,5mpasteliškai margas"]
["9.2.","Užvalkalas antklodei vaikiškas ( 1,3 x 1,3) m ",40,"vnt.",4.72,{"$f":"IF(ISBLANK(E111),\"\", PRODUCT(C111,E111))","v":188.79999999999998},"Užvalkalas antkl.vaikiškas 1,3x1,3m pasteliškai margas"]
["9.3.","Užvalkalas antklodei paauglinis ( 1,7 x 1,3) m",30,"vnt.",5.83,{"$f":"IF(ISBLANK(E112),\"\", PRODUCT(C112,E112))","v":174.9},"Užvalkalas antkl.paauglinis 1,7x1,3m pasteliškai margas"]
[null,null,null,null,"Suma be PVM",{"$f":"IF((SUMPRODUCT(--(F110:F112=\"\"))>0), \"\", SUM(F110:F112))","v":505.29999999999995},{"$f":"IF((SUMPRODUCT(--(F110:F112=\"\"))>0), \"Neužpildytos visų objektų kainos\", \"\")","v":""}]
[null,null,null,null,"PVM suma",106.11]
[null,null,null,null,"Suma su PVM",{"$f":"IF(ISBLANK(F114), \"\", SUM(F113:F114))","v":611.41}]
[]
["10.","UŽTIESALAS ČIUŽINIUI MEDŽIAGINIS ( 2,20x1,60) m"]
["10.1."," Užtiesalas čiužiniui medžiaginis ( 2,20 x 1,60) m",20,"vnt.",null,{"$f":"IF(ISBLANK(E118),\"\", PRODUCT(C118,E118))","v":""}]
[null,null,null,null,"Suma be PVM",{"$f":"IF(F118=\"\",\"\",SUM(F118:F118))","v":""},{"$f":"IF(F118=\"\",\"Neužpildytos visos objektų kainos\",\"\")","v":"Neužpildytos visos objektų kainos"}]
[null,null,null,null,"PVM suma"]
[null,null,null,null,"Suma su PVM",{"$f":"IF(ISBLANK(F120), \"\", SUM(F119:F120))","v":""}]

{"sheet":"Subtiekėjai","index":1,"n_rows":100,"n_cols":9,"rows_kept":100,"cut":false,"hidden":false,"merged":[[12,8,12,9],[13,8,13,9],[14,8,14,9],[15,8,15,9],[16,8,16,9],[1,0,1,10],[5,0,5,1],[5,2,5,4],[5,5,5,7],[5,8,5,9],[4,0,4,1],[4,2,4,4],[4,5,4,7],[4,8,4,9],[3,0,3,1],[3,2,3,4],[3,5,3,7],[3,8,3,9],[8,8,8,9],[10,0,10,9],[6,0,6,1],[6,2,6,4],[6,5,6,7],[6,8,6,9],[7,0,7,1],[7,2,7,4],[7,5,7,7],[7,8,7,9],[14,1,14,3],[15,4,15,5],[16,4,16,5],[8,0,8,1],[8,2,8,4],[8,5,8,7],[12,6,12,7],[13,6,13,7],[14,6,14,7],[15,6,15,7],[16,6,16,7],[13,1,13,3],[12,1,12,3],[12,4,12,5],[13,4,13,5],[14,4,14,5],[32,0,32,3],[32,4,32,9],[19,0,19,10],[16,1,16,3],[15,1,15,3],[22,0,22,9],[23,0,23,9],[25,0,25,9],[29,0,29,3],[29,4,29,9],[17,1,17,3],[17,4,17,5],[17,6,17,7],[17,8,17,9],[21,0,21,3],[21,4,21,9]]}
[]
["Subtiekėjai ir jiems perduodama vykdyti pirkimo sutarties dalis:"]
[]
["Eil. Nr",null,"Subtiekėjo pavadinimas",null,null,"Pirkimo objekto dalies, perduodamos vykdyti subtiekėjui, aprašymas",null,null,"Procentas perduodamos vykdyti pirkimo objekto dalies nuo pasiūlymo kainos su PVM (pildoma, jei ūkio subjektas vykdys sutartį)"]
[]
[]
[]
[]
[]
[]
["Kartu su pasiūlymu pateikiami šie dokumentai:"]
[]
["Eil.Nr.","Dokumentas",null,null,"Ar dokumnetas konfidencialus? (Taip/Ne)",null,"Prisegtos bylos (failo) pavadinimas ",null,"Paaiškinimas, kokia konkreti informacija dokumente yra konfidenciali"]
[]
[]
[]
[]
[]
[]
["Pasirašydamas šį pasiūlymą, tvirtintu, kad:\n1) pasiūlymo dokumentuose pateikti duomenys yra tikri;\n2) siūlomas Pirkimo objektas visiškai atitinka Pirkimo dokumentuose nustatytus reikalavimus;\n3) sutinku su visomis Pirkimo dokumentuose nustatytomis sąlygomis;\n4) pasiūlymas galioja iki termino, nustatyto Pirkimo dokumentuose; \n5) mes esame / nesame (nereikalingą išbraukti) laikomi asocijuotais (susijusiais) su Perkančiuoju subjektu pagal Lietuvos Respublikoje galiojančių teisės aktų (Lietuvos Respublikos pelno mokesčio, Lietuvos Respublikos pridėtinės vertės mokesčio ir Lietuvos Respublikos gyventojų pajamų mokesčio įstatymų) nuostatas; \n6) savo pasiūlymo galiojimą užtikrinsiu pagal Specialiųjų sąlygų 6.1 punktą (jei taikoma)."]
[]
["Pasiūlymo galiojimo užtikrinimui pateikiame :"]
[]
["(Nurodyti užtikrinimo būdą, dydį, dokumentus)"]
[]
["\nPasiūlymas galioja iki termino, nustatyto pirkimo dokumentuose.\n\nPasiūlymo neatskiriama dalis yra (rašoma, jeigu buvo reikalauta prie pasiūlymo pridėti atitinkamą dokumentą)"]
[]
[]
[]
["Tiekėjo arba jo įgalioto asmens pareigų pavadinimas"]
[]
[]
["Pasirašančio asmens vardas ir pavardė"]
[]
[]
[]
[]
[]
[]
[]
[]
[]
[]
[]
[]
[]
[]
[]
[]
[]
[]
[]
[]
[]
[]
[]
[]
[]
[]
[]
[]
[]
[]
[]
[]
[]
[]
[]
[]
[]
[]
[]
[]
[]
[]
[]
[]
[]
[]
[]
[]
[]
[]
[]
[]
[]
[]
[]
[]
[]
[]
[]
[]
[]
[]
[]
[]
[]
[]
["3478 2019-10-24 14:33:49"]